[Event "Early-Titled-Tuesday-Blitz-January-30-2024"]
[Site "Chess.com"]
[Date "2024.01.30"]
[Round "3"]
[White "VinzentSpitzl"]
[Black "Zheenbekov86"]
[Result "1-0"]
[WhiteElo "2621"]
[BlackElo "2446"]
[TimeControl "180+1"]
[EndTime "8:31:02 PST"]
[Termination "VinzentSpitzl won by checkmate"]

1. e4 {[%clk 0:03:00]} 1... c6 {[%clk 0:02:59.3]} 2. d4 {[%clk 0:02:59.6]} 2...
d5 {[%clk 0:02:59]} 3. exd5 {[%clk 0:03:00.2]} 3... cxd5 {[%clk 0:02:58.8]} 4.
Bd3 {[%clk 0:03:00.7]} 4... Nc6 {[%clk 0:02:58.2]} 5. c3 {[%clk 0:03:00.9]} 5...
Nf6 {[%clk 0:02:57.9]} 6. Bf4 {[%clk 0:03:00]} 6... Bg4 {[%clk 0:02:54.6]} 7.
Qb3 {[%clk 0:03:00.4]} 7... Qc8 {[%clk 0:02:51.2]} 8. Nd2 {[%clk 0:03:00.8]}
8... e6 {[%clk 0:02:49.1]} 9. h3 {[%clk 0:03:00.8]} 9... Bh5 {[%clk 0:02:48.3]}
10. Ngf3 {[%clk 0:03:01.3]} 10... Be7 {[%clk 0:02:46.4]} 11. O-O {[%clk
0:03:00.5]} 11... O-O {[%clk 0:02:46.2]} 12. Rfe1 {[%clk 0:03:00.9]} 12... a6
{[%clk 0:02:42]} 13. Ne5 {[%clk 0:02:56.5]} 13... Nd7 {[%clk 0:02:29.3]} 14. Qc2
{[%clk 0:02:45.3]} 14... Bg6 {[%clk 0:02:22]} 15. Nxg6 {[%clk 0:02:36.9]} 15...
hxg6 {[%clk 0:02:21.6]} 16. g3 {[%clk 0:02:37.4]} 16... b5 {[%clk 0:02:18.4]}
17. a3 {[%clk 0:02:33.5]} 17... Na5 {[%clk 0:02:17.9]} 18. b4 {[%clk 0:02:20.2]}
18... Nc4 {[%clk 0:02:16.5]} 19. Nxc4 {[%clk 0:02:15.4]} 19... bxc4 {[%clk
0:01:44.5]} 20. Be2 {[%clk 0:02:15.2]} 20... Qc6 {[%clk 0:01:39.3]} 21. h4
{[%clk 0:02:12.6]} 21... Bd6 {[%clk 0:01:38.9]} 22. Be3 {[%clk 0:01:58.7]} 22...
Rfe8 {[%clk 0:01:23.6]} 23. h5 {[%clk 0:01:47.8]} 23... gxh5 {[%clk 0:01:20.7]}
24. Bxh5 {[%clk 0:01:44.2]} 24... g6 {[%clk 0:01:11.5]} 25. Bxg6 {[%clk
0:01:34.1]} 25... Nf8 {[%clk 0:00:58.1]} 26. Bh5 {[%clk 0:01:26.8]} 26... f5
{[%clk 0:00:38.6]} 27. Bxe8 {[%clk 0:01:09.3]} 27... Qxe8 {[%clk 0:00:38.2]} 28.
Qe2 {[%clk 0:01:06.6]} 28... Qg6 {[%clk 0:00:34.2]} 29. Qf3 {[%clk 0:01:00.7]}
29... Nd7 {[%clk 0:00:33.1]} 30. Kg2 {[%clk 0:01:00.6]} 30... Nf6 {[%clk
0:00:29.1]} 31. Rh1 {[%clk 0:01:00.5]} 31... Ng4 {[%clk 0:00:26]} 32. Bf4 {[%clk
0:01:00.3]} 32... Bf8 {[%clk 0:00:22.5]} 33. Be5 {[%clk 0:00:48.2]} 33... Bg7
{[%clk 0:00:13.7]} 34. Bxg7 {[%clk 0:00:39.7]} 34... Qxg7 {[%clk 0:00:13.5]} 35.
Rae1 {[%clk 0:00:40.2]} 35... Qg6 {[%clk 0:00:10.9]} 36. Qf4 {[%clk 0:00:39.2]}
36... a5 {[%clk 0:00:08.1]} 37. Rh5 {[%clk 0:00:38.6]} 37... Qxh5 {[%clk
0:00:06.5]} 38. Rh1 {[%clk 0:00:36.3]} 38... Qg6 {[%clk 0:00:06.1]} 39. b5
{[%clk 0:00:35.6]} 39... Re8 {[%clk 0:00:02.9]} 40. b6 {[%clk 0:00:33.6]} 40...
Re7 {[%clk 0:00:02.2]} 41. Qd6 {[%clk 0:00:29]} 41... Kf7 {[%clk 0:00:02.3]} 42.
Rh8 {[%clk 0:00:27]} 42... Nf6 {[%clk 0:00:02.4]} 43. b7 {[%clk 0:00:21.7]}
43... Rxb7 {[%clk 0:00:01.3]} 44. Qf8# {[%clk 0:00:21]} 1-0

[Event "Early-Titled-Tuesday-Blitz-January-30-2024"]
[Site "Chess.com"]
[Date "2024.01.30"]
[Round "3"]
[White "soloderisas"]
[Black "inneremptiness"]
[Result "0-1"]
[WhiteElo "2527"]
[BlackElo "2857"]
[TimeControl "180+1"]
[EndTime "8:31:03 PST"]
[Termination "inneremptiness won on time"]

1. d4 {[%clk 0:03:00.9]} 1... Nf6 {[%clk 0:02:59.2]} 2. Nf3 {[%clk 0:03:00.3]}
2... g6 {[%clk 0:02:58.5]} 3. Bf4 {[%clk 0:03:00.8]} 3... Bg7 {[%clk 0:02:58.1]}
4. e3 {[%clk 0:03:01.2]} 4... O-O {[%clk 0:02:58.3]} 5. Be2 {[%clk 0:03:01.2]}
5... d6 {[%clk 0:02:58.6]} 6. h3 {[%clk 0:03:01.2]} 6... Nd5 {[%clk 0:02:49.7]}
7. Bh2 {[%clk 0:02:55.9]} 7... Nc6 {[%clk 0:02:48.2]} 8. O-O {[%clk 0:02:53.7]}
8... e5 {[%clk 0:02:48]} 9. c4 {[%clk 0:02:48.1]} 9... Nb6 {[%clk 0:02:47.4]}
10. Nc3 {[%clk 0:02:47.3]} 10... exd4 {[%clk 0:02:39.5]} 11. exd4 {[%clk
0:02:44.3]} 11... Re8 {[%clk 0:02:38.3]} 12. a4 {[%clk 0:02:30.3]} 12... a5
{[%clk 0:02:26]} 13. Nb5 {[%clk 0:02:06.5]} 13... Re7 {[%clk 0:01:53.8]} 14. Re1
{[%clk 0:01:30.7]} 14... Nb4 {[%clk 0:01:50.7]} 15. c5 {[%clk 0:01:24]} 15...
dxc5 {[%clk 0:01:44.8]} 16. dxc5 {[%clk 0:01:24.9]} 16... Rd7 {[%clk 0:01:45.2]}
17. Bxc7 {[%clk 0:01:14.5]} 17... Rxd1 {[%clk 0:00:59.1]} 18. Raxd1 {[%clk
0:01:13.8]} 18... Qf6 {[%clk 0:00:59.5]} 19. Rd8+ {[%clk 0:01:10.9]} 19... Bf8
{[%clk 0:00:59.4]} 20. cxb6 {[%clk 0:01:02]} 20... Nc6 {[%clk 0:00:40.4]} 21.
Re8 {[%clk 0:00:52.2]} 21... Kg7 {[%clk 0:00:39.3]} 22. Bc4 {[%clk 0:00:40.9]}
22... Bc5 {[%clk 0:00:34.2]} 23. Nc3 {[%clk 0:00:25.2]} 23... Be6 {[%clk
0:00:16.5]} 24. Rxa8 {[%clk 0:00:19.8]} 24... Bxc4 {[%clk 0:00:16.3]} 25. Ree8
{[%clk 0:00:19.4]} 25... Qf5 {[%clk 0:00:10.6]} 26. Ne4 {[%clk 0:00:17.5]} 26...
Be7 {[%clk 0:00:06.3]} 27. Rg8+ {[%clk 0:00:15]} 27... Kh6 {[%clk 0:00:06.5]}
28. Ng3 {[%clk 0:00:11.9]} 28... Qb1+ {[%clk 0:00:07]} 29. Kh2 {[%clk
0:00:11.5]} 29... Qc1 {[%clk 0:00:07.7]} 30. h4 {[%clk 0:00:08.2]} 30... f5
{[%clk 0:00:07.8]} 31. Rae8 {[%clk 0:00:07.7]} 31... Bxg8 {[%clk 0:00:07.5]} 32.
Rxg8 {[%clk 0:00:07.2]} 32... Bf6 {[%clk 0:00:06.6]} 33. Ne2 {[%clk 0:00:07.5]}
33... Qc4 {[%clk 0:00:04.4]} 34. Bf4+ {[%clk 0:00:07.9]} 34... Kh5 {[%clk
0:00:04.7]} 35. Ng3+ {[%clk 0:00:07.7]} 35... Kg4 {[%clk 0:00:05.2]} 36. Be3
{[%clk 0:00:08.1]} 36... Qxg8 {[%clk 0:00:05.2]} 37. Ng1 {[%clk 0:00:06.2]}
37... f4 {[%clk 0:00:02.9]} 38. f3+ {[%clk 0:00:05.7]} 38... Kxh4 {[%clk
0:00:03.8]} 39. Ne4 {[%clk 0:00:04.5]} 39... fxe3 {[%clk 0:00:03.5]} 40. g3+
{[%clk 0:00:05]} 40... Kh5 {[%clk 0:00:03.9]} 41. Ne2 {[%clk 0:00:05.7]} 41...
Be7 {[%clk 0:00:03.4]} 42. Nf4+ {[%clk 0:00:05.6]} 42... Kh6 {[%clk 0:00:04.1]}
43. g4 {[%clk 0:00:06.5]} 43... Kg7 {[%clk 0:00:04.3]} 44. g5 {[%clk 0:00:06.4]}
44... Qb8 {[%clk 0:00:04.9]} 45. Kg3 {[%clk 0:00:06.3]} 45... e2 {[%clk
0:00:05.6]} 0-1

[Event "Early-Titled-Tuesday-Blitz-January-30-2024"]
[Site "Chess.com"]
[Date "2024.01.30"]
[Round "3"]
[White "ozates"]
[Black "rasmussvane"]
[Result "0-1"]
[WhiteElo "2652"]
[BlackElo "2970"]
[TimeControl "180+1"]
[EndTime "8:31:06 PST"]
[Termination "rasmussvane won by resignation"]

1. e4 {[%clk 0:03:00.9]} 1... c6 {[%clk 0:02:56.8]} 2. Nf3 {[%clk 0:02:58.4]}
2... d5 {[%clk 0:02:57.7]} 3. d3 {[%clk 0:02:59.1]} 3... dxe4 {[%clk 0:02:50]}
4. dxe4 {[%clk 0:03:00]} 4... Qxd1+ {[%clk 0:02:50.4]} 5. Kxd1 {[%clk
0:03:00.9]} 5... Nf6 {[%clk 0:02:48.2]} 6. Nfd2 {[%clk 0:03:00.8]} 6... g6
{[%clk 0:02:45.9]} 7. f3 {[%clk 0:02:57.9]} 7... Bh6 {[%clk 0:02:44.7]} 8. a4
{[%clk 0:02:56.4]} 8... Be6 {[%clk 0:02:35]} 9. Bc4 {[%clk 0:02:54.1]} 9... Bxc4
{[%clk 0:02:05.4]} 10. Nxc4 {[%clk 0:02:51.7]} 10... Bxc1 {[%clk 0:02:06.3]} 11.
Kxc1 {[%clk 0:02:52.2]} 11... Nbd7 {[%clk 0:02:06.5]} 12. b4 {[%clk 0:02:42.6]}
12... O-O-O {[%clk 0:02:04.2]} 13. Nc3 {[%clk 0:02:35.6]} 13... g5 {[%clk
0:01:53.4]} 14. Kb2 {[%clk 0:02:34.1]} 14... Kc7 {[%clk 0:01:45.2]} 15. a5
{[%clk 0:02:30.7]} 15... Ne8 {[%clk 0:01:42.3]} 16. Rhd1 {[%clk 0:02:29.4]}
16... Nd6 {[%clk 0:01:41.9]} 17. Ne3 {[%clk 0:02:18.5]} 17... Ne5 {[%clk
0:01:39.7]} 18. Kb3 {[%clk 0:02:19]} 18... h5 {[%clk 0:01:35.7]} 19. Rd4 {[%clk
0:02:03.2]} 19... Rd7 {[%clk 0:01:25.5]} 20. Rad1 {[%clk 0:02:01.5]} 20... Rhd8
{[%clk 0:01:24.8]} 21. Na4 {[%clk 0:01:40.9]} 21... b6 {[%clk 0:01:21.1]} 22.
axb6+ {[%clk 0:01:40.3]} 22... axb6 {[%clk 0:01:22]} 23. Nc3 {[%clk 0:01:40.8]}
23... e6 {[%clk 0:01:21.1]} 24. Ra1 {[%clk 0:01:35]} 24... Kb7 {[%clk
0:01:19.6]} 25. Rad1 {[%clk 0:01:31.5]} 25... h4 {[%clk 0:01:13.5]} 26. h3
{[%clk 0:01:29.6]} 26... Kc7 {[%clk 0:01:12.5]} 27. Ra1 {[%clk 0:01:29.3]} 27...
Kb8 {[%clk 0:01:12.9]} 28. Rad1 {[%clk 0:01:27.4]} 28... c5 {[%clk 0:01:09.1]}
29. R4d2 {[%clk 0:01:15.9]} 29... Kb7 {[%clk 0:01:02.4]} 30. Rb1 {[%clk
0:00:54.2]} 30... Kc6 {[%clk 0:01:01]} 31. Ra1 {[%clk 0:00:49.3]} 31... Kb7
{[%clk 0:00:42.7]} 32. Rdd1 {[%clk 0:00:42]} 32... Nc6 {[%clk 0:00:40]} 33. bxc5
{[%clk 0:00:40.4]} 33... bxc5 {[%clk 0:00:40.9]} 34. Na4 {[%clk 0:00:36.9]}
34... Nd4+ {[%clk 0:00:37.4]} 35. Kc3 {[%clk 0:00:29]} 35... Kc6 {[%clk
0:00:35.1]} 36. Nc4 {[%clk 0:00:20.6]} 36... Ne2+ {[%clk 0:00:26.8]} 37. Kb3
{[%clk 0:00:20.8]} 37... Rb8+ {[%clk 0:00:22.4]} 38. Ncb6 {[%clk 0:00:18.9]}
38... Rxb6+ {[%clk 0:00:15.3]} 39. Nxb6 {[%clk 0:00:19.8]} 39... Kxb6 {[%clk
0:00:16]} 40. e5 {[%clk 0:00:20.2]} 40... Nd4+ {[%clk 0:00:12.3]} 41. Rxd4
{[%clk 0:00:20.1]} 41... cxd4 {[%clk 0:00:13.2]} 42. exd6 {[%clk 0:00:20.6]}
42... Rxd6 {[%clk 0:00:13.3]} 43. Kc4 {[%clk 0:00:21.5]} 43... Rc6+ {[%clk
0:00:12.4]} 44. Kd3 {[%clk 0:00:21.6]} 44... Rc3+ {[%clk 0:00:11.3]} 45. Kd2
{[%clk 0:00:21.7]} 45... e5 {[%clk 0:00:10.4]} 46. Ra8 {[%clk 0:00:20.1]} 46...
f6 {[%clk 0:00:10.7]} 47. Rf8 {[%clk 0:00:18.6]} 47... Rc6 {[%clk 0:00:10.9]}
48. Rb8+ {[%clk 0:00:17]} 48... Kc7 {[%clk 0:00:10.8]} 49. Rf8 {[%clk
0:00:16.1]} 49... Kd7 {[%clk 0:00:11.3]} 50. Ra8 {[%clk 0:00:15.6]} 50... Ke6
{[%clk 0:00:11.8]} 51. Ra1 {[%clk 0:00:11.4]} 51... Kf5 {[%clk 0:00:12.3]} 52.
Re1 {[%clk 0:00:12]} 52... Kf4 {[%clk 0:00:12.8]} 53. Re4+ {[%clk 0:00:12.2]}
53... Kg3 {[%clk 0:00:12.6]} 54. Re2 {[%clk 0:00:13]} 54... Ra6 {[%clk
0:00:11.7]} 55. Kd3 {[%clk 0:00:13.3]} 55... Ra1 {[%clk 0:00:10.5]} 56. Ke4
{[%clk 0:00:13.5]} 56... Rg1 {[%clk 0:00:10.7]} 57. Kf5 {[%clk 0:00:13.8]} 57...
Rxg2 {[%clk 0:00:11.2]} 58. Rxg2+ {[%clk 0:00:13.7]} 58... Kxg2 {[%clk
0:00:11.7]} 59. Kxf6 {[%clk 0:00:14.6]} 0-1

[Event "Early-Titled-Tuesday-Blitz-January-30-2024"]
[Site "Chess.com"]
[Date "2024.01.30"]
[Round "3"]
[White "GP9isback23"]
[Black "GMBenjaminBok"]
[Result "1/2-1/2"]
[WhiteElo "2636"]
[BlackElo "2940"]
[TimeControl "180+1"]
[EndTime "8:31:06 PST"]
[Termination "Game drawn - insufficient material"]

1. d4 {[%clk 0:03:00]} 1... Nf6 {[%clk 0:03:00]} 2. Nf3 {[%clk 0:03:00.7]} 2...
e6 {[%clk 0:03:00.3]} 3. c4 {[%clk 0:03:00]} 3... b6 {[%clk 0:03:00.4]} 4. g3
{[%clk 0:02:55.1]} 4... Ba6 {[%clk 0:03:00]} 5. b3 {[%clk 0:02:49.1]} 5... Bb4+
{[%clk 0:02:59.3]} 6. Bd2 {[%clk 0:02:49.3]} 6... Be7 {[%clk 0:03:00]} 7. Bg2
{[%clk 0:02:49.8]} 7... O-O {[%clk 0:03:00.5]} 8. O-O {[%clk 0:02:49.7]} 8... d5
{[%clk 0:03:00.7]} 9. Bc3 {[%clk 0:02:42.1]} 9... c5 {[%clk 0:03:00.2]} 10. Nbd2
{[%clk 0:02:38.2]} 10... Nc6 {[%clk 0:02:59.8]} 11. e3 {[%clk 0:02:27.1]} 11...
Rc8 {[%clk 0:02:59]} 12. Re1 {[%clk 0:02:21.2]} 12... cxd4 {[%clk 0:02:48.7]}
13. exd4 {[%clk 0:02:18.2]} 13... Bb4 {[%clk 0:02:31]} 14. Rc1 {[%clk
0:02:00.4]} 14... dxc4 {[%clk 0:02:17.8]} 15. Nxc4 {[%clk 0:01:56.2]} 15... Qe7
{[%clk 0:02:14]} 16. Bxb4 {[%clk 0:01:32.3]} 16... Qxb4 {[%clk 0:02:07.2]} 17.
Nfe5 {[%clk 0:01:29.8]} 17... Bb7 {[%clk 0:00:52.8]} 18. Re2 {[%clk 0:00:44.9]}
18... Rfd8 {[%clk 0:00:43]} 19. Rd2 {[%clk 0:00:40.5]} 19... h6 {[%clk
0:00:39.9]} 20. h3 {[%clk 0:00:40.4]} 20... Na5 {[%clk 0:00:29]} 21. Bxb7 {[%clk
0:00:38.9]} 21... Nxb7 {[%clk 0:00:29.1]} 22. Kg2 {[%clk 0:00:32.8]} 22... Qe7
{[%clk 0:00:21.2]} 23. Ne3 {[%clk 0:00:29]} 23... Nd6 {[%clk 0:00:16.1]} 24. Kg1
{[%clk 0:00:24.6]} 24... Qb7 {[%clk 0:00:14.7]} 25. Rdc2 {[%clk 0:00:22.5]}
25... Rxc2 {[%clk 0:00:14.8]} 26. Rxc2 {[%clk 0:00:23]} 26... Rc8 {[%clk
0:00:12.3]} 27. Qc1 {[%clk 0:00:21.1]} 27... Rxc2 {[%clk 0:00:10.3]} 28. Qxc2
{[%clk 0:00:22]} 28... Nb5 {[%clk 0:00:09.8]} 29. Qd2 {[%clk 0:00:20.5]} 29...
Ne4 {[%clk 0:00:06.8]} 30. Qd3 {[%clk 0:00:19.1]} 30... Nbd6 {[%clk 0:00:05.7]}
31. N3c4 {[%clk 0:00:14.6]} 31... Nxc4 {[%clk 0:00:04.6]} 32. bxc4 {[%clk
0:00:14.8]} 32... Nf6 {[%clk 0:00:03.7]} 33. Nf3 {[%clk 0:00:12.1]} 33... Qe4
{[%clk 0:00:02.4]} 34. Qxe4 {[%clk 0:00:06.5]} 34... Nxe4 {[%clk 0:00:03.3]} 35.
Kf1 {[%clk 0:00:07.2]} 35... Kf8 {[%clk 0:00:02.4]} 36. a3 {[%clk 0:00:06.8]}
36... Ke7 {[%clk 0:00:02.4]} 37. Ke2 {[%clk 0:00:06.9]} 37... Nd6 {[%clk
0:00:02.7]} 38. Kd3 {[%clk 0:00:07]} 38... f6 {[%clk 0:00:03.3]} 39. Nd2 {[%clk
0:00:07.1]} 39... Kd7 {[%clk 0:00:03.4]} 40. Ne4 {[%clk 0:00:07.4]} 40... Nxe4
{[%clk 0:00:02.8]} 41. Kxe4 {[%clk 0:00:08.3]} 41... Kd6 {[%clk 0:00:03]} 42. f4
{[%clk 0:00:08.7]} 42... a6 {[%clk 0:00:02.6]} 43. a4 {[%clk 0:00:08.7]} 43...
g6 {[%clk 0:00:02.2]} 44. g4 {[%clk 0:00:09]} 44... f5+ {[%clk 0:00:02.6]} 45.
Ke3 {[%clk 0:00:08.4]} 45... fxg4 {[%clk 0:00:02]} 46. hxg4 {[%clk 0:00:08.9]}
46... h5 {[%clk 0:00:02.5]} 47. gxh5 {[%clk 0:00:07.2]} 47... gxh5 {[%clk
0:00:03.4]} 48. Kf3 {[%clk 0:00:07.3]} 48... Kc6 {[%clk 0:00:03.5]} 49. Kg3
{[%clk 0:00:06.9]} 49... b5 {[%clk 0:00:04.1]} 50. axb5+ {[%clk 0:00:04.9]}
50... axb5 {[%clk 0:00:05]} 51. cxb5+ {[%clk 0:00:04.9]} 51... Kxb5 {[%clk
0:00:05.9]} 52. Kh4 {[%clk 0:00:05.5]} 52... Kc4 {[%clk 0:00:06.5]} 53. Kxh5
{[%clk 0:00:05.9]} 53... Kxd4 {[%clk 0:00:07.1]} 54. Kg6 {[%clk 0:00:03.7]}
54... Ke4 {[%clk 0:00:07.5]} 55. Kf6 {[%clk 0:00:04.3]} 55... Kxf4 {[%clk
0:00:07.7]} 56. Kxe6 {[%clk 0:00:04.8]} 1/2-1/2

[Event "Early-Titled-Tuesday-Blitz-January-30-2024"]
[Site "Chess.com"]
[Date "2024.01.30"]
[Round "3"]
[White "Grossboss19"]
[Black "RaulPerezGuerra"]
[Result "1-0"]
[WhiteElo "2600"]
[BlackElo "2360"]
[TimeControl "180+1"]
[EndTime "8:31:07 PST"]
[Termination "Grossboss19 won by resignation"]

1. e4 {[%clk 0:03:00.9]} 1... b6 {[%clk 0:02:57.8]} 2. Nf3 {[%clk 0:03:00.6]}
2... Bb7 {[%clk 0:02:58.7]} 3. Nc3 {[%clk 0:03:00.9]} 3... e6 {[%clk 0:02:59.2]}
4. d4 {[%clk 0:03:01.1]} 4... d5 {[%clk 0:02:58.1]} 5. Bd3 {[%clk 0:02:58.7]}
5... dxe4 {[%clk 0:02:56.2]} 6. Nxe4 {[%clk 0:02:57.6]} 6... Nf6 {[%clk
0:02:55.5]} 7. Nxf6+ {[%clk 0:02:50.8]} 7... gxf6 {[%clk 0:02:47.9]} 8. Qe2
{[%clk 0:02:46.1]} 8... f5 {[%clk 0:02:46.4]} 9. c3 {[%clk 0:02:43.6]} 9... Nd7
{[%clk 0:02:45.9]} 10. Bf4 {[%clk 0:02:38.9]} 10... Nf6 {[%clk 0:02:44.3]} 11.
O-O-O {[%clk 0:02:35.6]} 11... Nd5 {[%clk 0:02:44.3]} 12. Bg5 {[%clk 0:02:30]}
12... Be7 {[%clk 0:02:42.2]} 13. Bxe7 {[%clk 0:02:28.9]} 13... Qxe7 {[%clk
0:02:43.1]} 14. g3 {[%clk 0:02:25]} 14... O-O-O {[%clk 0:02:41.4]} 15. Rhe1
{[%clk 0:02:22]} 15... Qd6 {[%clk 0:02:29.5]} 16. Ne5 {[%clk 0:02:18]} 16...
Rhf8 {[%clk 0:02:26.5]} 17. f4 {[%clk 0:02:14.9]} 17... Nf6 {[%clk 0:02:25.5]}
18. Qc2 {[%clk 0:01:59.3]} 18... Be4 {[%clk 0:02:23.7]} 19. Qa4 {[%clk
0:01:49.2]} 19... Kb7 {[%clk 0:02:03.5]} 20. Ba6+ {[%clk 0:01:39.5]} 20... Ka8
{[%clk 0:01:52.3]} 21. Bb5 {[%clk 0:01:31.9]} 21... Bb7 {[%clk 0:01:45.1]} 22.
Nc6 {[%clk 0:01:24.5]} 22... a6 {[%clk 0:01:27.9]} 23. Nxd8 {[%clk 0:01:18.5]}
23... Rxd8 {[%clk 0:01:26.7]} 24. Bxa6 {[%clk 0:01:15.6]} 24... Kb8 {[%clk
0:01:26.3]} 25. Bxb7 {[%clk 0:01:14.3]} 25... Kxb7 {[%clk 0:01:27.2]} 26. Qc4
{[%clk 0:01:11.8]} 26... Nd5 {[%clk 0:01:26.2]} 27. Kb1 {[%clk 0:01:10.3]} 27...
h5 {[%clk 0:01:20.9]} 28. h4 {[%clk 0:01:02.2]} 28... Rg8 {[%clk 0:01:19.3]} 29.
Rg1 {[%clk 0:01:00.4]} 29... Nf6 {[%clk 0:01:16.1]} 30. Qe2 {[%clk 0:00:59.1]}
30... Rg4 {[%clk 0:01:13.2]} 31. c4 {[%clk 0:00:47.3]} 31... Ne4 {[%clk
0:01:11.9]} 32. Qf3 {[%clk 0:00:46.3]} 32... Kb8 {[%clk 0:01:04.1]} 33. Ka1
{[%clk 0:00:39.2]} 33... Qb4 {[%clk 0:00:55.9]} 34. Qd3 {[%clk 0:00:25.7]} 34...
Nf2 {[%clk 0:00:51.4]} 35. Qd2 {[%clk 0:00:25.8]} 35... Qxd2 {[%clk 0:00:28.3]}
36. Rxd2 {[%clk 0:00:26.7]} 36... Ne4 {[%clk 0:00:28.6]} 37. Rd3 {[%clk
0:00:27.3]} 37... Nf2 {[%clk 0:00:28.1]} 38. Rf3 {[%clk 0:00:26]} 38... Ne4
{[%clk 0:00:26]} 39. b3 {[%clk 0:00:26.5]} 39... c5 {[%clk 0:00:19.6]} 40. dxc5
{[%clk 0:00:25.8]} 40... bxc5 {[%clk 0:00:20.5]} 41. Kb2 {[%clk 0:00:24.9]}
41... Kc7 {[%clk 0:00:20.8]} 42. Kc2 {[%clk 0:00:24.9]} 42... Kb6 {[%clk
0:00:21.3]} 43. Rd3 {[%clk 0:00:23.5]} 43... Kc7 {[%clk 0:00:20.6]} 44. Rg2
{[%clk 0:00:23]} 44... Rg8 {[%clk 0:00:15.8]} 45. Kd1 {[%clk 0:00:20.8]} 45...
Nf6 {[%clk 0:00:13.3]} 46. Ke2 {[%clk 0:00:20.1]} 46... Ne4 {[%clk 0:00:13.5]}
47. Kf3 {[%clk 0:00:19.9]} 47... Ra8 {[%clk 0:00:12.1]} 48. Re2 {[%clk
0:00:17.1]} 48... Kc6 {[%clk 0:00:11.6]} 49. Kg2 {[%clk 0:00:15.7]} 49... Rg8
{[%clk 0:00:11.1]} 50. Kh2 {[%clk 0:00:15.8]} 50... f6 {[%clk 0:00:10.5]} 51. a4
{[%clk 0:00:15.9]} 51... e5 {[%clk 0:00:10.8]} 52. fxe5 {[%clk 0:00:12.7]} 52...
fxe5 {[%clk 0:00:11.7]} 53. Rf3 {[%clk 0:00:12.1]} 53... Rf8 {[%clk 0:00:10.1]}
54. Rxe4 {[%clk 0:00:11.8]} 54... fxe4 {[%clk 0:00:10.2]} 55. Rxf8 {[%clk
0:00:12]} 55... e3 {[%clk 0:00:10.7]} 56. Rf1 {[%clk 0:00:12.5]} 1-0

[Event "Early-Titled-Tuesday-Blitz-January-30-2024"]
[Site "Chess.com"]
[Date "2024.01.30"]
[Round "3"]
[White "Sanyura"]
[Black "TheoSlade"]
[Result "1-0"]
[WhiteElo "2634"]
[BlackElo "2460"]
[TimeControl "180+1"]
[EndTime "8:31:08 PST"]
[Termination "Sanyura won on time"]

1. Nf3 {[%clk 0:02:39.7]} 1... d5 {[%clk 0:03:00]} 2. g3 {[%clk 0:02:40.6]} 2...
Nd7 {[%clk 0:02:59.7]} 3. Bg2 {[%clk 0:02:37]} 3... e5 {[%clk 0:02:59.6]} 4. d3
{[%clk 0:02:37.1]} 4... Ngf6 {[%clk 0:03:00]} 5. O-O {[%clk 0:02:37.6]} 5... Bd6
{[%clk 0:03:00.3]} 6. e4 {[%clk 0:02:38.1]} 6... dxe4 {[%clk 0:02:59.6]} 7. dxe4
{[%clk 0:02:38.3]} 7... O-O {[%clk 0:02:58]} 8. Qe2 {[%clk 0:02:37.6]} 8... Nc5
{[%clk 0:02:52.2]} 9. Nh4 {[%clk 0:02:36.6]} 9... Bg4 {[%clk 0:02:48.2]} 10. f3
{[%clk 0:02:35.2]} 10... Bd7 {[%clk 0:02:41.2]} 11. Nd2 {[%clk 0:02:34.7]} 11...
Ne6 {[%clk 0:02:39.6]} 12. Nc4 {[%clk 0:02:34.4]} 12... Nd4 {[%clk 0:02:35.8]}
13. Qf2 {[%clk 0:02:33.6]} 13... Bb5 {[%clk 0:02:30.4]} 14. Nxd6 {[%clk
0:02:33.1]} 14... Bxf1 {[%clk 0:02:21.4]} 15. Nxb7 {[%clk 0:02:30.6]} 15... Qb8
{[%clk 0:02:19.7]} 16. Bxf1 {[%clk 0:02:30.9]} 16... Qxb7 {[%clk 0:02:19.5]} 17.
c3 {[%clk 0:02:31.3]} 17... Ne6 {[%clk 0:02:17.4]} 18. Nf5 {[%clk 0:02:30]}
18... Rab8 {[%clk 0:02:12.5]} 19. b3 {[%clk 0:02:30.3]} 19... Rfd8 {[%clk
0:02:05.5]} 20. Bc4 {[%clk 0:02:29.3]} 20... Rd1+ {[%clk 0:01:58.9]} 21. Kg2
{[%clk 0:02:28.8]} 21... Nxe4 {[%clk 0:01:40.9]} 22. Qe2 {[%clk 0:01:41.1]}
22... Nxc3 {[%clk 0:01:33.7]} 23. Qxe5 {[%clk 0:01:39.3]} 23... c5 {[%clk
0:00:31]} 24. Qxc3 {[%clk 0:01:31.8]} 24... Nd4 {[%clk 0:00:26.3]} 25. Nxd4
{[%clk 0:01:26.9]} 25... cxd4 {[%clk 0:00:19.8]} 26. Qc2 {[%clk 0:01:27.3]}
26... Re1 {[%clk 0:00:20.2]} 27. Bb2 {[%clk 0:01:27.7]} 27... Rxa1 {[%clk
0:00:17.7]} 28. Bxa1 {[%clk 0:01:28.6]} 28... Rd8 {[%clk 0:00:15]} 29. Qf5
{[%clk 0:01:28.2]} 29... Qe7 {[%clk 0:00:10.1]} 30. Bd3 {[%clk 0:01:19.9]} 30...
g6 {[%clk 0:00:09.8]} 31. Qf4 {[%clk 0:01:20.1]} 31... Qb4 {[%clk 0:00:06.6]}
32. Bc4 {[%clk 0:01:17.6]} 32... Qe7 {[%clk 0:00:03.1]} 33. Bxd4 {[%clk
0:01:17.6]} 33... g5 {[%clk 0:00:02.4]} 34. Qf6 {[%clk 0:01:04.6]} 34... Qxf6
{[%clk 0:00:02.5]} 35. Bxf6 {[%clk 0:01:05.5]} 35... Rd2+ {[%clk 0:00:02.7]} 36.
Kh3 {[%clk 0:01:06.4]} 36... Rxa2 {[%clk 0:00:03.1]} 37. Bxg5 {[%clk 0:01:07.3]}
37... a5 {[%clk 0:00:03]} 38. g4 {[%clk 0:01:03]} 38... Rc2 {[%clk 0:00:03.3]}
39. Bf1 {[%clk 0:00:19.3]} 39... Rc3 {[%clk 0:00:03.3]} 40. Bd2 {[%clk
0:00:19.2]} 40... Rxf3+ {[%clk 0:00:02.8]} 41. Kg2 {[%clk 0:00:19.8]} 41... Rxb3
{[%clk 0:00:03.4]} 42. Bxa5 {[%clk 0:00:20.5]} 42... Rb2+ {[%clk 0:00:02.7]} 43.
Kg3 {[%clk 0:00:20.4]} 43... Ra2 {[%clk 0:00:03.6]} 44. Bb6 {[%clk 0:00:18.7]}
44... Rb2 {[%clk 0:00:03.8]} 45. Bf2 {[%clk 0:00:18.7]} 45... Rb3+ {[%clk
0:00:04.3]} 46. Kg2 {[%clk 0:00:18.3]} 46... Rb4 {[%clk 0:00:04.9]} 47. h3
{[%clk 0:00:17.8]} 47... Rb2 {[%clk 0:00:05.5]} 48. Bc4 {[%clk 0:00:18.1]} 48...
Rc2 {[%clk 0:00:05.5]} 49. Bd3 {[%clk 0:00:18.2]} 49... Rd2 {[%clk 0:00:05.7]}
50. Bf5 {[%clk 0:00:18]} 50... Rb2 {[%clk 0:00:05.7]} 51. Kf3 {[%clk 0:00:18.4]}
51... Rb3+ {[%clk 0:00:05.8]} 52. Be3 {[%clk 0:00:19.1]} 52... Ra3 {[%clk
0:00:06.2]} 53. Kf4 {[%clk 0:00:19.5]} 53... Kg7 {[%clk 0:00:06.6]} 54. Bd4+
{[%clk 0:00:19]} 54... f6 {[%clk 0:00:06.5]} 55. g5 {[%clk 0:00:18.1]} 55...
Rxh3 {[%clk 0:00:06.8]} 56. gxf6+ {[%clk 0:00:18.2]} 56... Kf7 {[%clk
0:00:06.9]} 57. Bxh3 {[%clk 0:00:19.1]} 57... h5 {[%clk 0:00:06.3]} 58. Kg5
{[%clk 0:00:18.4]} 1-0